bitfinex/quotes_SOLUSD_20241118
["timestamp","ask_amount","ask_price","bid_price","bid_amount"]
[1731945423657,23.17725427,243.67,243.59,20.0]
[1731945424051,23.17725427,243.65,243.59,20.0]
[1731945424355,23.17725427,243.63,243.55,20.0]
[1731945424652,0.09367462,243.62,243.55,20.0]
[1731945425233,0.09367462,243.6,243.53,20.0]
[1731945425637,23.17725427,243.59,243.51,20.0]
[1731945426034,23.17725427,243.59,243.5,25.31336627]
[1731945426035,0.09367462,243.58,243.5,25.31336627]
[1731945426239,23.17725427,243.59,243.5,25.31336627]
[1731945426442,0.09367462,243.6,243.52,23.17725427]
[1731945426630,0.5,243.69,243.5,2.136112]
[1731945426631,23.17725427,243.63,243.54,23.17725427]
[1731945427159,23.17725427,243.61,243.52,23.17725427]
[1731945427347,23.17725427,243.63,243.52,23.17725427]
[1731945427548,23.17725427,243.63,243.54,23.17725427]
[1731945427742,23.17725427,243.67,243.59,20.0]
[1731945427949,23.17725427,243.65,243.59,20.0]
[1731945428438,23.17725427,243.65,243.55,20.0]
[1731945428658,23.17725427,243.6,243.51,20.0]
[1731945428964,23.17725427,243.6,243.5,23.17725427]
[1731945429263,23.87055862,243.59,243.5,25.97821741]
[1731945429554,0.09367462,243.55,243.5,23.17725427]
[1731945429770,0.09367462,243.55,243.48,23.17725427]
[1731945430064,23.27092889,243.56,243.48,23.17725427]
[1731945430362,23.27092889,243.56,243.39,34.5958]
[1731945430363,0.09367462,243.56,243.5,23.17725427]
[1731945430835,42.9318,243.58,243.51,20.0]
[1731945431035,12.8931,243.58,243.53,20.0]
[1731945431958,0.09367462,243.55,243.46,23.17725427]
[1731945432163,0.09367462,243.53,243.44,23.17725427]
[1731945432466,0.09367462,243.49,243.4,23.17725427]
[1731945432955,0.09367462,243.49,243.39,3.24]
[1731945432956,23.87055862,243.47,243.39,3.24]
[1731945433160,23.87055862,243.47,243.36,23.17725427]
[1731945433161,23.87055862,243.45,243.36,23.17725427]
[1731945433457,23.87055862,243.43,243.34,23.17725427]
[1731945434199,23.17725427,243.48,243.4,23.17725427]
[1731945434367,12.4108,243.5,243.46,23.17725427]
[1731945434553,12.4325,243.56,243.5,20.0]
[1731945434743,12.4325,243.56,243.53,20.0]
[1731945435061,35.78555427,243.62,243.53,20.0]
[1731945435369,0.09367462,243.61,243.55,20.0]
[1731945435869,35.78555427,243.62,243.55,20.0]
[1731945436068,35.78555427,243.62,243.52,23.17725427]
[1731945436069,0.09367462,243.61,243.53,20.0]
[1731945436564,23.17725427,243.58,243.43,20.0]
[1731945436765,23.17725427,243.6,243.52,20.0]
[1731945436975,12.6083,243.62,243.54,20.0]
[1731945437150,0.09367462,243.59,243.54,20.0]
[1731945437349,35.78555427,243.62,243.45,70.0]
[1731945437560,35.78555427,243.62,243.54,23.17725427]
[1731945437739,12.6083,243.62,243.58,23.17725427]
[1731945437947,12.6322,243.69,243.61,20.0]
[1731945438156,32.6097,243.73,243.65,23.17725427]
[1731945438358,32.6097,243.73,243.66,20.0]
[1731945438541,23.17725427,243.74,243.66,20.0]
[1731945439446,23.17725427,243.72,243.64,20.0]
[1731945439946,23.17725427,243.74,243.65,0.12549]
[1731945440155,23.17725427,243.72,243.64,20.0]
[1731945440349,23.17725427,243.66,243.56,20.0]
[1731945440646,23.17725427,243.64,243.55,23.17725427]
[1731945440855,23.17725427,243.72,243.57,23.17725427]
[1731945440856,23.17725427,243.66,243.57,23.17725427]
[1731945441058,0.09367462,243.63,243.55,23.17725427]
[1731945441240,0.09367462,243.63,243.53,23.17725427]
[1731945441447,23.17725427,243.58,243.49,23.17725427]
[1731945441770,0.09367462,243.53,243.41,16.418804]
[1731945442073,0.09367462,243.47,243.39,23.17725427]
[1731945443274,0.09367462,243.47,243.4,20.0]
[1731945443463,23.17725427,243.46,243.35,23.17725427]
[1731945443656,23.776884,243.47,243.4,23.17725427]
[1731945443861,23.87055862,243.49,243.42,23.17725427]
[1731945444066,0.09367462,243.49,243.42,23.17725427]
[1731945444576,0.09367462,243.49,243.45,20.0]
[1731945444964,0.09367462,243.49,243.43,20.0]
[1731945447889,23.17725427,243.46,243.36,23.17725427]
[1731945448173,23.87055862,243.43,243.34,23.17725427]
[1731945448372,23.776884,243.43,243.34,23.17725427]
[1731945448554,23.17725427,243.46,243.36,23.17725427]
[1731945448751,23.17725427,243.46,243.37,23.17725427]
[1731945449283,23.17725427,243.46,243.32,2.13302984]
[1731945449284,23.17725427,243.4,243.32,4.1098]
[1731945449467,23.776884,243.39,243.3,4.1101]
[1731945449666,23.776884,243.37,243.3,4.1101]
[1731945449860,23.776884,243.37,243.31,23.17725427]
[1731945450062,23.87055862,243.39,243.31,23.17725427]
[1731945450678,23.776884,243.39,243.31,23.17725427]
[1731945450870,23.17725427,243.39,243.31,23.17725427]
[1731945451057,23.776884,243.36,243.3,4.1101]
[1731945451259,0.09367462,243.33,243.3,4.1101]
[1731945451565,23.776884,243.34,243.28,4.1104]
[1731945451766,23.17725427,243.35,243.28,4.1104]
[1731945451767,0.09367462,243.31,243.28,4.1104]
[1731945451973,23.776884,243.32,243.28,4.1104]
[1731945452157,0.81623432,243.33,243.28,4.1104]
[1731945452359,24.59311832,243.34,243.28,4.1104]
[1731945452559,0.09367462,243.33,243.28,4.1104]
[1731945452775,23.776884,243.32,243.28,4.1104]
[1731945452983,24.59311832,243.32,243.28,4.1104]
[1731945453176,23.776884,243.32,243.28,4.1104]
[1731945453684,23.17725427,243.33,243.21,2.86805244]
[1731945453685,23.87055862,243.34,243.26,23.17725427]
[1731945453979,23.87055862,243.32,243.26,23.17725427]
[1731945454191,23.87055862,243.3,243.22,27.28875427]
[1731945454493,0.81623432,243.31,243.22,4.1115]
[1731945454494,47.04781289,243.28,243.22,4.1115]
[1731945454697,0.5,243.31,243.17,4.1123]
[1731945454698,23.776884,243.25,243.17,4.1123]
[1731945454992,23.776884,243.23,243.17,4.1123]
[1731945455282,23.776884,243.23,243.18,23.17725427]
[1731945455767,46.95413827,243.26,243.19,4.112]
[1731945456085,23.776884,243.24,243.22,23.17725427]
[1731945456376,23.776884,243.24,243.19,4.112]
[1731945456377,0.90990894,243.23,243.19,4.112]
[1731945456585,0.09367462,243.21,243.19,4.112]
[1731945456777,0.09367462,243.19,243.13,23.17725427]
[1731945457095,4.1108,243.26,243.13,23.17725427]
[1731945457096,23.776884,243.18,243.13,23.17725427]
[1731945457391,23.87055862,243.2,243.15,23.17725427]
[1731945457685,23.87055862,243.18,243.06,3.1327616]
[1731945457871,23.87055862,243.16,243.07,4.114]
[1731945458069,23.776884,243.14,243.12,23.17725427]
[1731945458976,23.776884,243.18,243.12,23.17725427]
[1731945459179,23.776884,243.18,243.15,23.17725427]
[1731945459383,12.259,243.22,243.17,23.17725427]
[1731945459563,12.259,243.22,243.06,1.0]
[1731945459564,0.81623432,243.21,243.14,23.17725427]
[1731945459767,13.07523432,243.22,243.16,23.17725427]
[1731945459973,12.259,243.22,243.18,23.17725427]
[1731945460363,0.09367462,243.21,243.16,23.17725427]
[1731945460570,12.259,243.22,243.15,4.1126]
[1731945460879,12.259,243.22,243.16,23.17725427]
[1731945461265,23.776884,243.25,243.16,23.17725427]
[1731945461469,0.81623432,243.26,243.18,23.17725427]
[1731945461696,0.09367462,243.25,243.19,4.112]
[1731945462197,23.27092889,243.25,243.14,23.17725427]
[1731945462403,0.09367462,243.22,243.14,23.17725427]
[1731945462569,0.09367462,243.22,243.16,23.17725427]
[1731945462965,0.90990894,243.22,243.16,23.17725427]
[1731945463183,0.09367462,243.22,243.16,23.17725427]
[1731945463571,23.776884,243.26,243.18,23.17725427]
[1731945463772,0.81623432,243.25,243.21,4.1116]
[1731945463997,0.09367462,243.24,243.21,4.1116]
[1731945464290,23.87055862,243.24,243.21,4.1116]
[1731945464491,0.09367462,243.22,243.21,4.1116]
[1731945465000,23.99348859,243.23,243.14,23.17725427]
[1731945465200,0.81623432,243.23,243.16,23.17725427]
[1731945465494,0.09367462,243.23,243.16,23.17725427]
[1731945465695,23.87055862,243.23,243.16,23.17725427]
[1731945465903,0.09367462,243.23,243.18,23.17725427]
[1731945466072,23.776884,243.25,243.18,23.17725427]
[1731945466399,24.59311832,243.26,243.17,4.1123]
[1731945466601,23.17725427,243.32,243.23,20.0]
[1731945466895,0.81623432,243.31,243.23,20.0]
[1731945467196,0.09367462,243.27,243.19,20.0]
[1731945467368,0.09367462,243.27,243.17,4.1123]
[1731945467369,23.17725427,243.28,243.2,23.17725427]
[1731945467571,23.17725427,243.32,243.23,20.0]
[1731945467795,12.3572,243.34,243.27,24.1106]
[1731945467992,35.53445427,243.34,243.27,24.1106]
[1731945468189,23.17725427,243.32,243.27,4.1106]
[1731945468402,0.09367462,243.29,243.21,24.1116]
[1731945468698,16.4667,243.34,243.21,4.1116]
[1731945468699,23.17725427,243.28,243.21,4.1116]
[1731945468878,23.17725427,243.28,243.21,24.1116]
[1731945469268,23.17725427,243.32,243.23,20.0]
[1731945469603,23.17725427,243.3,243.23,20.0]
[1731945469775,0.81623432,243.29,243.23,20.0]
[1731945469973,0.81623432,243.29,243.2,20.0]
[1731945470389,23.17725427,243.28,243.2,20.0]
[1731945470895,23.17725427,243.26,243.16,20.0]
[1731945471085,23.17725427,243.26,243.18,20.0]
[1731945471293,23.17725427,243.22,243.13,23.17725427]
[1731945471783,23.17725427,243.2,243.12,4.1131]
[1731945472192,23.87055862,243.17,243.12,4.1131]
[1731945472575,23.17725427,243.24,243.14,23.17725427]
[1731945472779,23.17725427,243.24,243.16,23.17725427]
[1731945472975,23.17725427,243.22,243.12,27.29035427]
[1731945473275,0.81623432,243.21,243.13,20.0]
[1731945473479,23.17725427,243.24,243.16,23.17725427]
[1731945473680,23.17725427,243.26,243.17,20.0]
[1731945474002,23.776884,243.27,243.19,24.112]
[1731945474187,0.81623432,243.26,243.19,24.112]
[1731945474372,23.776884,243.25,243.19,24.112]
[1731945474575,0.81623432,243.26,243.19,24.112]
[1731945474792,0.81623432,243.32,243.25,20.0]
[1731945474995,0.81623432,243.33,243.27,20.0]
[1731945475176,23.99348859,243.33,243.27,20.0]
[1731945475497,0.81623432,243.33,243.27,20.0]
[1731945475679,0.81623432,243.33,243.27,19.5]
[1731945476184,0.81623432,243.33,243.28,4.1104]
[1731945477699,23.87055862,243.32,243.28,4.1104]
[1731945477994,12.3572,243.34,243.12,23.17725427]
[1731945477995,23.87055862,243.3,243.23,20.0]
[1731945478201,23.776884,243.28,243.23,20.0]
[1731945478379,23.87055862,243.25,243.2,4.1117]
[1731945478576,0.81623432,243.24,243.2,4.1117]
[1731945478777,24.59311832,243.25,243.2,4.1117]
[1731945479090,23.17725427,243.28,243.2,4.1117]
[1731945479398,46.95413827,243.26,243.2,4.1117]
[1731945479611,47.04781289,243.24,243.14,23.17725427]
[1731945479899,47.04781289,243.22,243.12,23.17725427]
[1731945480197,0.81623432,243.21,243.12,23.17725427]
[1731945480386,23.87055862,243.2,243.12,27.29035427]
[1731945480591,0.09367462,243.19,243.12,27.29035427]
[1731945480792,0.81623432,243.21,243.16,23.17725427]
[1731945481295,23.902374,243.19,243.1,23.17725427]
[1731945481504,23.99348859,243.18,243.1,23.17725427]
[1731945481707,0.09367462,243.16,243.09,4.1137]
[1731945482000,0.90990894,243.16,243.1,23.17725427]
[1731945482592,23.776884,243.15,243.11,4.1133]
[1731945482901,23.776884,243.13,243.09,23.17725427]
[1731945483277,0.81623432,243.12,243.09,23.17725427]
[1731945483594,0.81623432,243.12,243.07,4.114]
[1731945483595,23.776884,243.14,243.07,4.114]
[1731945483905,0.81623432,243.13,243.09,23.17725427]
[1731945484584,0.81623432,243.13,243.07,27.29125427]
[1731945485583,0.81623432,243.13,243.08,20.0]
[1731945486282,23.87055862,243.12,243.08,20.0]
[1731945486496,0.81623432,243.11,243.07,24.114]
[1731945487009,0.09367462,243.13,243.07,24.114]
[1731945487681,0.09367462,243.11,243.06,1.0]
[1731945487904,0.09367462,243.09,243.06,1.0]
[1731945488302,0.75098,243.07,242.81,30.7603]
[1731945488511,0.12549,243.01,242.93,23.17725427]
[1731945488804,0.09367462,243.0,242.93,23.17725427]
[1731945489007,0.09367462,242.95,242.87,23.17725427]
[1731945489584,23.17725427,242.99,242.91,23.17725427]
[1731945489792,23.776884,242.96,242.89,23.17725427]
[1731945490100,23.776884,242.93,242.86,4.1175]
[1731945490598,0.09367462,242.92,242.86,4.1175]
[1731945491207,13.2488,242.94,242.87,23.17725427]
[1731945491603,23.776884,242.97,242.91,23.17725427]
[1731945491810,36.42605427,243.0,242.91,23.17725427]
[1731945491996,13.2488,243.0,242.93,23.17725427]
[1731945492203,23.17725427,243.04,242.95,23.17725427]
[1731945492588,23.17725427,243.04,242.96,24.1159]
[1731945493092,12.3977,243.06,242.96,24.1159]
[1731945493093,35.57495427,243.06,242.98,20.0]
[1731945493291,23.17725427,243.11,243.03,20.0]
[1731945494116,35.71335427,243.13,243.05,20.0]
[1731945494723,35.71335427,243.13,243.06,4.1142]
[1731945494901,23.17725427,243.13,243.06,4.1142]
[1731945495292,0.09367462,243.14,243.06,4.1142]
[1731945495637,0.5,243.21,243.06,4.1142]
[1731945495638,12.5346,243.27,243.13,20.12549]
[1731945495798,23.17725427,243.19,243.13,20.0]
[1731945496510,23.17725427,243.14,243.06,4.1142]
[1731945496720,23.17725427,243.11,243.06,4.1142]
[1731945496919,23.17725427,243.13,243.06,4.1142]
[1731945497220,23.17725427,243.15,243.07,20.0]
[1731945497424,0.09367462,243.14,243.07,20.0]
[1731945497715,23.17725427,243.13,243.06,4.1142]
[1731945497919,23.17725427,243.2,243.12,23.17725427]
[1731945498112,23.17725427,243.22,243.13,20.0]
[1731945498324,23.17725427,243.26,243.17,20.0]
[1731945498825,23.17725427,243.26,243.07,1.25098]
[1731945498826,23.17725427,243.26,243.19,20.0]
[1731945499201,23.17725427,243.3,243.21,20.0]
[1731945499402,23.17725427,243.32,243.23,20.0]
[1731945499903,23.17725427,243.32,243.24,4.1111]
[1731945500419,23.17725427,243.32,243.25,20.0]
[1731945501230,23.17725427,243.34,243.25,20.0]
[1731945501401,23.17725427,243.34,243.33,4.05317639]
[1731945501763,23.17725427,243.36,243.3,4.1101]
[1731945501938,23.17725427,243.38,243.34,4.05244922]
[1731945502530,0.09367462,243.37,243.35,4.05244922]
[1731945502724,23.17725427,243.38,243.35,4.05244922]
[1731945503107,12.3774,243.4,243.35,4.05244922]
[1731945503108,46.44818316,243.36,243.35,4.05244922]
[1731945503306,0.09367462,243.35,243.33,4.05244922]
[1731945503608,23.87055862,243.33,243.32,4.05244922]
[1731945503925,47.17330289,243.33,243.32,4.05244922]
[1731945504121,23.99604862,243.32,243.31,4.05244922]
[1731945504325,23.99604862,243.32,243.18,23.17725427]
[1731945504326,0.09367462,243.31,243.18,23.17725427]
[1731945504534,0.09367462,243.28,243.18,23.17725427]
[1731945504706,23.87055862,243.28,243.18,23.17725427]
[1731945504906,0.09367462,243.28,243.2,23.17725427]
[1731945505132,23.17725427,243.33,243.25,23.17725427]
[1731945505427,23.17725427,243.37,243.28,20.0]
[1731945505817,23.27092889,243.39,243.3,24.1101]
[1731945506018,23.17725427,243.39,243.3,24.1101]
[1731945506407,23.17725427,243.37,243.32,20.0]
[1731945506608,23.17725427,243.39,243.32,20.0]
[1731945506907,23.17725427,243.35,243.32,20.0]
[1731945507104,23.17725427,243.35,243.3,4.1101]
[1731945507314,23.17725427,243.39,243.31,23.17725427]
[1731945507531,23.17725427,243.39,243.32,20.0]
[1731945507733,23.87055862,243.38,243.32,20.0]
[1731945507933,23.87055862,243.38,243.3,4.1101]
[1731945507934,0.09367462,243.36,243.3,20.0]
[1731945508235,23.87055862,243.36,243.29,20.0]
[1731945508423,23.776884,243.39,243.32,23.17725427]
[1731945508816,23.776884,243.39,243.3,23.17725427]
[1731945509123,23.776884,243.39,243.31,20.0]
[1731945509124,0.09367462,243.38,243.31,20.0]
[1731945509324,0.09367462,243.38,243.3,23.17725427]
[1731945509534,0.09367462,243.38,243.31,20.0]
[1731945510215,0.09367462,243.36,243.31,20.0]
[1731945510412,23.87055862,243.32,243.22,23.17725427]
[1731945510628,23.87055862,243.3,243.22,23.17725427]
[1731945511031,23.776884,243.3,243.22,23.17725427]
[1731945511740,0.09367462,243.29,243.23,20.0]
[1731945511940,0.09367462,243.26,243.21,4.1116]
[1731945512146,0.09367462,243.26,243.17,23.17725427]
[1731945512147,23.87055862,243.26,243.19,4.1119]
[1731945512440,0.09367462,243.26,243.19,27.28915427]
[1731945512616,0.09367462,243.27,243.19,27.28915427]
[1731945513230,0.09367462,243.27,243.2,20.0]
[1731945513436,23.17725427,243.33,243.23,23.17725427]
[1731945513641,23.776884,243.34,243.26,20.0]
[1731945513821,23.87055862,243.3,243.21,23.17725427]
[1731945514639,23.776884,243.32,243.24,23.17725427]
[1731945514821,23.17725427,243.39,243.29,23.17725427]
[1731945515139,30.1053,243.44,243.38,23.17725427]
[1731945515339,12.61,243.46,243.4,23.17725427]
[1731945515838,23.17725427,243.45,243.37,24.1089]
[1731945516443,23.17725427,243.45,243.37,4.1089]
[1731945516624,12.61,243.46,243.37,4.1089]
[1731945516939,23.17725427,243.45,243.37,4.1089]
[1731945517520,0.09367462,243.43,243.37,4.1089]
[1731945518138,23.776884,243.44,243.38,23.17725427]
[1731945518344,12.61,243.46,243.39,20.0]
[1731945518837,0.09367462,243.44,243.37,24.1089]
[1731945519025,23.17725427,243.41,243.37,4.1089]
[1731945519339,23.17725427,243.39,243.35,4.1091]
[1731945519835,23.17725427,243.41,243.31,23.17725427]
[1731945520019,23.87055862,243.4,243.33,23.17725427]
[1731945520420,17.2175,243.46,243.32,4.1098]
[1731945520421,23.776884,243.43,243.35,23.17725427]
[1731945520620,23.776884,243.43,243.36,20.0]
[1731945520841,23.776884,243.45,243.37,23.17725427]
[1731945521039,35.78725427,243.46,243.37,23.17725427]
[1731945521240,12.61,243.46,243.39,23.17725427]
[1731945521444,35.78725427,243.46,243.37,23.17725427]
[1731945521744,35.78725427,243.46,243.38,20.0]
[1731945521950,35.78725427,243.46,243.39,4.1086]
[1731945521951,0.09367462,243.45,243.39,4.1086]
[1731945522240,23.17725427,243.44,243.39,4.1086]
[1731945522446,23.87055862,243.45,243.39,4.1086]
[1731945522621,23.776884,243.45,243.39,4.1086]
[1731945524319,23.776884,243.45,243.38,20.0]
[1731945524320,23.87055862,243.41,243.35,4.1093]
[1731945524648,23.17725427,243.4,243.35,4.1093]
[1731945524940,23.776884,243.41,243.35,4.1093]
[1731945525117,23.776884,243.41,243.36,20.0]
[1731945525325,23.776884,243.43,243.36,20.0]
[1731945525527,23.87055862,243.45,243.36,20.0]
[1731945525758,23.87055862,243.45,243.37,23.17725427]
[1731945526237,23.87055862,243.45,243.38,4.1088]
[1731945527441,0.09367462,243.41,243.34,20.0]
[1731945527615,23.87055862,243.41,243.32,24.1098]
[1731945527816,23.776884,243.41,243.34,20.0]
[1731945528031,23.17725427,243.42,243.33,23.17725427]
[1731945528032,23.27092889,243.42,243.36,20.0]
[1731945528238,0.09367462,243.38,243.32,4.1098]
[1731945528443,23.776884,243.37,243.32,4.1098]
[1731945529223,23.776884,243.41,243.33,23.17725427]
[1731945529536,0.09367462,243.4,243.33,23.17725427]
[1731945530450,0.09367462,243.38,243.32,20.0]
[1731945531735,23.17725427,243.36,243.28,20.0]
[1731945531931,23.87055862,243.33,243.28,24.1104]
[1731945532552,23.87055862,243.33,243.28,4.1104]
[1731945532938,23.17725427,243.32,243.23,23.17725427]
[1731945533122,32.9632,243.37,243.15,28.800499]
[1731945533123,23.17725427,243.3,243.24,4.1111]
[1731945533324,35.26725427,243.3,243.24,4.1111]
[1731945533534,23.776884,243.31,243.25,23.17725427]
[1731945533731,23.776884,243.35,243.27,23.17725427]
[1731945534455,23.776884,243.35,243.29,23.17725427]
[1731945534683,23.776884,243.35,243.3,20.0]
[1731945535069,23.776884,243.35,243.2,4.1118]
[1731945535070,23.87055862,243.35,243.27,23.17725427]
[1731945535267,23.87055862,243.35,243.28,20.0]
[1731945535717,23.87055862,243.35,243.31,23.17725427]
[1731945535901,23.87055862,243.35,243.32,4.1098]
[1731945536083,23.17725427,243.4,243.32,4.1098]
[1731945536398,12.0258,243.42,243.35,23.17725427]
[1731945536578,23.17725427,243.44,243.35,23.17725427]
[1731945536913,23.17725427,243.44,243.37,23.17725427]
[1731945537080,23.17725427,243.46,243.37,23.17725427]
[1731945537273,0.09367462,243.45,243.37,23.17725427]
[1731945537480,23.17725427,243.46,243.37,23.17725427]
[1731945537994,23.17725427,243.46,243.38,4.1088]
[1731945538176,35.20305427,243.48,243.39,23.17725427]
[1731945538378,12.0258,243.48,243.41,23.17725427]
[1731945538613,23.17725427,243.5,243.39,23.17725427]
[1731945538986,23.17725427,243.48,243.39,23.17725427]
[1731945539186,0.09367462,243.53,243.4,20.0]
[1731945539385,16.6791,243.54,243.42,23.17725427]
[1731945539386,23.17725427,243.51,243.42,23.17725427]
[1731945539878,23.17725427,243.49,243.43,4.1079]
[1731945540292,23.17725427,243.47,243.43,4.1079]
[1731945540587,23.776884,243.48,243.43,4.1079]
[1731945540784,23.17725427,243.47,243.43,4.1079]
[1731945541194,23.776884,243.46,243.39,20.0]
[1731945541500,23.776884,243.46,243.37,24.1089]
[1731945541697,23.776884,243.46,243.39,20.0]
[1731945542009,23.776884,243.49,243.43,23.17725427]
[1731945542194,23.17725427,243.58,243.48,20.0]
[1731945542537,31.29754061,243.73,243.58,20.0]
[1731945542703,31.29754061,243.73,243.64,23.17725427]
[1731945543112,0.09367462,243.72,243.64,23.17725427]
[1731945543287,0.09367462,243.72,243.54,0.5]
[1731945543288,0.09367462,243.72,243.66,23.17725427]
[1731945543478,27.27995427,243.75,243.66,23.17725427]
[1731945543876,23.17725427,243.77,243.68,23.17725427]
[1731945544394,39.35845427,243.81,243.7,23.17725427]
[1731945544572,23.17725427,243.79,243.7,23.17725427]
[1731945544774,23.17725427,243.77,243.69,20.0]
[1731945544983,0.09367462,243.76,243.69,20.0]
[1731945545387,23.17725427,243.77,243.69,20.0]
[1731945545703,23.17725427,243.79,243.7,23.17725427]
[1731945546077,23.776884,243.78,243.7,23.17725427]
[1731945546303,23.17725427,243.77,243.68,23.17725427]
[1731945546484,23.776884,243.76,243.69,20.0]
[1731945546984,23.17725427,243.77,243.69,20.0]
[1731945547295,0.09367462,243.78,243.7,23.17725427]
[1731945547496,23.17725427,243.79,243.7,23.17725427]
[1731945548208,0.09367462,243.78,243.7,23.17725427]
[1731945548385,0.09367462,243.78,243.69,20.0]
[1731945548592,0.09367462,243.72,243.64,23.17725427]
[1731945548776,23.87055862,243.72,243.64,23.17725427]
[1731945549283,0.09367462,243.7,243.64,23.17725427]
[1731945549710,0.09367462,243.67,243.59,23.17725427]
[1731945549999,23.87055862,243.63,243.55,23.17725427]
[1731945550669,23.776884,243.63,243.55,23.17725427]
[1731945550902,23.776884,243.65,243.57,23.17725427]
[1731945551399,23.776884,243.63,243.56,20.0]
[1731945551777,23.776884,243.65,243.59,23.17725427]
[1731945552172,0.09367462,243.64,243.59,23.17725427]
[1731945552693,23.776884,243.65,243.63,23.17725427]
[1731945553184,23.87055862,243.67,243.59,23.17725427]
[1731945553378,23.87055862,243.67,243.48,55.98255427]
[1731945553379,23.87055862,243.65,243.57,23.17725427]
[1731945553567,23.776884,243.63,243.56,20.0]
[1731945553775,23.776884,243.65,243.57,23.17725427]
[1731945553979,23.776884,243.65,243.59,23.17725427]
[1731945554157,23.87055862,243.67,243.59,23.17725427]
[1731945554369,23.87055862,243.65,243.57,23.17725427]
[1731945554765,0.09367462,243.65,243.57,23.17725427]
[1731945554993,23.87055862,243.65,243.57,23.17725427]
[1731945555179,0.09367462,243.65,243.57,23.17725427]
[1731945555391,23.87055862,243.65,243.57,23.17725427]
[1731945555880,0.09367462,243.61,243.53,23.17725427]
[1731945556185,23.17725427,243.6,243.52,20.0]
[1731945556359,23.776884,243.61,243.53,23.17725427]
[1731945556562,23.776884,243.61,243.49,20.0]
[1731945556563,23.902374,243.67,243.59,23.17725427]
[1731945556772,23.776884,243.67,243.59,23.17725427]
[1731945557159,23.17725427,243.68,243.59,23.17725427]
[1731945557364,0.09367462,243.67,243.59,23.17725427]
[1731945557557,0.09367462,243.67,243.61,23.17725427]
[1731945557949,0.21916462,243.63,243.53,23.17725427]
[1731945558155,0.09367462,243.61,243.51,23.17725427]
[1731945558355,0.09367462,243.63,243.55,23.17725427]
[1731945559261,4.19827462,243.63,243.55,23.17725427]
[1731945560059,4.19827462,243.63,243.57,23.17725427]
[1731945560460,4.1037,243.68,243.61,23.17725427]
[1731945560756,0.09367462,243.63,243.55,23.17725427]
[1731945561076,0.09367462,243.63,243.48,55.98255427]
[1731945561077,0.09367462,243.63,243.57,23.17725427]
[1731945561259,4.19817462,243.63,243.55,23.17725427]
[1731945561687,4.19817462,243.63,243.49,23.17725427]
[1731945561688,0.09367462,243.59,243.49,23.17725427]
[1731945561870,0.09367462,243.55,243.47,23.17725427]
[1731945562573,0.09367462,243.53,243.45,23.17725427]
[1731945563179,4.1064,243.52,243.45,23.17725427]
[1731945563395,0.09367462,243.53,243.47,23.17725427]
[1731945563693,4.1061,243.54,243.47,23.17725427]
[1731945564063,0.09367462,243.57,243.49,23.17725427]
[1731945564367,4.1058,243.56,243.49,23.17725427]
[1731945565078,16.1819,243.58,243.53,23.17725427]
[1731945565283,39.35915427,243.58,243.51,23.17725427]
[1731945565982,39.35915427,243.58,243.53,4.04123353]
[1731945566560,39.35915427,243.58,243.52,4.04123353]
[1731945567370,39.35915427,243.58,243.51,4.04123353]
[1731945567679,23.17725427,243.54,243.51,4.04123353]
[1731945567887,23.17725427,243.54,243.5,4.04123353]
[1731945568579,4.1062,243.53,243.5,4.04123353]
[1731945568781,4.1062,243.53,243.49,4.04123353]
[1731945568983,23.27092889,243.5,243.49,4.04123353]
[1731945569309,0.09367462,243.49,243.48,4.04123353]
[1731945569464,0.09367462,243.49,243.47,4.04123353]
[1731945569465,23.27092889,243.49,243.47,4.04123353]
[1731945569979,23.27092889,243.49,243.46,4.04123353]
[1731945570167,23.17725427,243.47,243.46,4.04123353]
[1731945570492,4.1072,243.48,243.46,4.04123353]
[1731945571079,23.27092889,243.47,243.46,4.04123353]
[1731945571563,23.17725427,243.47,243.39,4.1085]
[1731945571963,23.17725427,243.49,243.42,23.17725427]
[1731945572165,23.17725427,243.52,243.44,23.17725427]
[1731945572383,23.17725427,243.48,243.38,23.17725427]
[1731945572685,23.17725427,243.46,243.37,4.1088]
[1731945572899,23.17725427,243.46,243.38,23.17725427]
[1731945573480,23.17725427,243.49,243.39,23.776884]
[1731945573668,4.1071,243.48,243.39,27.885284]
[1731945573994,4.1071,243.48,243.4,23.17725427]
[1731945575593,23.17725427,243.49,243.3,0.5]